fUSD/lending_fUSD_20251025
["ID","MTS","AMOUNT","RATE_DAILY","PERIOD"]
[392341128,1761366644563,-151.0,0.00036836,2]
[392341129,1761366644571,-151.0,0.00036836,2]
[392341130,1761366644580,-151.0,0.00036836,2]
[392341131,1761366644589,-151.0,0.00036836,2]
[392341132,1761366644598,-151.0,0.00036836,2]
[392341133,1761366644607,-151.0,0.00036836,2]
[392341134,1761366644615,-151.0,0.00036836,2]
[392341135,1761366644628,-151.0,0.00036836,2]
[392341136,1761366644639,-151.0,0.00036836,2]
[392341137,1761366644648,-151.0,0.00036836,2]
[392341138,1761366644657,-151.0,0.00036836,2]
[392341139,1761366644668,-151.0,0.00036836,2]
[392341140,1761366644679,-291.79566579,0.00036836,2]
[392341141,1761366644690,-151.0,0.00036836,2]
[392341142,1761366644699,-151.0,0.00036836,2]
[392341143,1761366644711,-151.0,0.00036836,2]
[392341144,1761366644721,-151.0,0.00036836,2]
[392341145,1761366644731,-151.0,0.00036836,2]
[392341146,1761366644742,-151.0,0.00036836,2]
[392341147,1761366644751,-151.0,0.00036836,2]
[392341148,1761366644761,-151.0,0.00036836,2]
[392341149,1761366644772,-151.0,0.00036836,2]
[392341150,1761366644781,-151.0,0.00036836,2]
[392341151,1761366644792,-151.0,0.00036836,2]
[392341152,1761366644802,-151.0,0.00036836,2]
[392341153,1761366644811,-151.0,0.00036836,2]
[392341154,1761366644820,-151.0,0.00036836,2]
[392341155,1761366644828,-151.0,0.00036836,2]
[392341156,1761366644837,-151.0,0.00036836,2]
[392341157,1761366644846,-436.0,0.00036852,7]
[392341158,1761366644854,-388.176,0.00036858,46]
[392341159,1761366644863,-606.0,0.00036859,2]
[392341160,1761366644872,-1592.0,0.00036859,2]
[392341161,1761366644882,-1312.0,0.00036859,2]
[392341162,1761366644891,-1270.0,0.00036859,2]
[392341163,1761366644905,-818.0,0.00036859,2]
[392341164,1761366644914,-1136.0,0.00036859,2]
[392341165,1761366644923,-903.0,0.00036859,2]
[392341166,1761366644934,-822.0407102,0.00036923,2]
[392341167,1761366644944,-168.0,0.00036944,2]
[392341168,1761366644953,-518.48352839,0.00036993,30]
[392341169,1761366644963,-476.4830027,0.00037,30]
[392341170,1761366644972,-659.02213734,0.00037032,2]
[392341171,1761366644981,-822.0407102,0.00037073,2]
[392341172,1761366644990,-1000.0,0.00037091,2]
[392341173,1761366644999,-500.0,0.0003726,7]
[392341174,1761366645009,-1100.0,0.0003726,7]
[392341175,1761366645021,-500.0,0.0003726,7]
[392341176,1761366645031,-300.0,0.00037278,2]
[392341177,1761366645040,-275.0,0.0003729,120]
[392341178,1761366645049,-1000.0,0.00037365,2]
[392341179,1761366645059,-696.68,0.00037397,2]
[392341180,1761366645069,-696.68,0.00037397,2]
[392341181,1761366645078,-218.49,0.00037397,2]
[392341182,1761366645088,-1000.0,0.000374,7]
[392341183,1761366645098,-500.0,0.0003742,30]
[392341184,1761366645107,-1092.0,0.00037479,5]
[392341185,1761366645118,-822.0407102,0.0003748,2]
[392341186,1761366645127,-6541.0,0.00037495,2]
[392341187,1761366645137,-3488.0,0.00037495,2]
[392341188,1761366645147,-3414.0,0.00037495,2]
[392341189,1761366645156,-819.0,0.00037495,2]
[392341190,1761366645165,-2054.0,0.00037495,2]
[392341191,1761366645176,-275.0,0.00037519,7]
[392341192,1761366645186,-2342.5589,0.00037589,2]
[392341193,1761366645195,-1000.0,0.00037589,2]
[392341194,1761366645205,-1000.0,0.00037639,2]
[392341195,1761366645214,-1000.0,0.00037674,2]
[392341196,1761366645224,-1397.3659,0.00037674,2]
[392341197,1761366645233,-183.9105,0.00037674,2]
[392341198,1761366645244,-6627.4763,0.00037674,2]
[392341199,1761366645253,-233.7833,0.00037674,2]
[392341200,1761366645262,-279.1196,0.00037674,2]
[392341201,1761366645273,-6226.8408,0.00037674,2]
[392341202,1761366645285,-1000.0,0.00037674,120]
[392341203,1761366645295,-2500.0,0.00037674,2]
[392341204,1761366645304,-822.0407102,0.00037683,2]
[392341205,1761366645313,-1000.0,0.00037762,7]
[392341206,1761366645323,-160.94743088,0.0003777,2]
[392341207,1761366645333,-500.0,0.0003777,2]
[392341208,1761366645342,-153.77949303,0.0003777,2]
[392341209,1761366645351,-150.0,0.0003777,2]
[392341210,1761366645361,-151.0,0.00037771,14]
[392341211,1761366645371,-151.0,0.00037771,14]
[392341212,1761366645380,-500.0,0.00037773,30]
[392341213,1761366645389,-639.54549669,0.00037773,2]
[392341214,1761366645399,-1004.55859029,0.00037773,2]
[392341215,1761366645409,-151.0,0.00037774,30]
[392341216,1761366645419,-151.0,0.00037774,30]
[392341217,1761366645428,-151.0,0.00037774,30]
[392341218,1761366645438,-151.0,0.00037774,30]
[392341219,1761366645448,-151.0,0.00037774,30]
[392341220,1761366645457,-151.0,0.00037774,30]
[392341221,1761366645467,-192974.5116,0.00037774,2]
[392341222,1761366645477,-648.26803756,0.00037774,2]
[392341223,1761366645486,-204.34227883,0.00037789,2]
[392341224,1761366645495,-947.05,0.000378,30]
[392341225,1761366645504,-7500.0,0.000378,13]
[392341226,1761366645513,-759.16323672,0.00037802,7]
[392341227,1761366645522,-1000.0,0.0003781,7]
[392341228,1761366645531,-500.0,0.00037825,2]
[392341229,1761366645540,-500.0,0.0003788,2]
[392341230,1761366645550,-20810.77212752,0.0003788,2]
[392341231,1761366645656,151.0,0.00020517,7]
[392341232,1761366645827,151.0,0.00020517,7]
[392341233,1761366645907,-151.0,0.00022,7]
[392341234,1761366645918,-45.15325894,0.00022,7]
[392341235,1761366646127,207.4586233,0.000149,2]
[392341238,1761366661331,200.0,0.00036816,30]
[392341239,1761366689033,-281.54409164,0.00014997,2]
[392341240,1761366692322,-176.12049052,0.00014997,2]
[392341241,1761366693975,-90.61749717,0.00014997,2]
[392341242,1761366694004,-108.4732496,0.00014997,2]
[392341243,1761366695621,-234.80105439,0.00014997,2]
[392341244,1761366699933,-205.00777534,0.00014997,2]
[392341245,1761366699956,-103.5193108,0.00014997,2]
[392341246,1761366702162,-202.6364642,0.00014997,2]
[392341247,1761366703933,-242.12630433,0.00014997,2]
[392341248,1761366703957,-61.85454353,0.00014997,2]
[392341249,1761366705557,-326.42695415,0.00014997,2]
[392341250,1761366710087,-160.00058165,0.00014997,2]
[392341251,1761366710112,-126.29850457,0.00014997,2]
[392341252,1761366712434,-196.01915214,0.00014997,2]
[392341253,1761366716669,-161.0,0.00014997,2]
[392341254,1761366733998,-222.8540575,0.00014996,2]
[392341255,1761366736167,-77.1459425,0.00014996,2]
[392341256,1761366736191,-64.96442262,0.00014997,2]
[392341257,1761366736216,-128.90991312,0.00014997,2]
[392341258,1761366737876,-328.110072,0.00014997,2]
[392341259,1761366740387,-91.26209421,0.00014997,2]
[392341260,1761366740414,-301.09059976,0.00014997,2]
[392341261,1761366742960,-235.86690458,0.00014997,2]
[392341262,1761366745812,-11.32457499,0.00014997,2]
[392341263,1761366745838,-210.2638748,0.00014997,2]
[392341264,1761366764000,-153.82597722,0.00014999,2]
[392341265,1761366767886,-195.01483769,0.00014999,2]
[392341266,1761366771931,197.28898115,0.00014899,2]
[392341267,1761366772285,-151.15918509,0.00014999,2]
[392341268,1761366772310,-306.66116155,0.00014999,2]
[392341269,1761366776816,-182.09074188,0.00014999,2]
[392341270,1761366776839,-113.69925812,0.00014999,2]
[392341271,1761366824011,-79.63958033,0.00014999,2]
[392341272,1761366824033,-76.79606904,0.00014999,2]
[392341273,1761366851727,2348.0,0.00021,3]
[392341274,1761366913940,-252.30135802,0.00014999,2]
[392341275,1761366916238,-170.55962723,0.00014999,2]
[392341276,1761366917948,-77.13901475,0.00014999,2]
[392341277,1761366917971,-94.00219145,0.00014999,2]
[392341278,1761366919618,-283.88777509,0.00014999,2]
[392341279,1761366924296,-122.11003346,0.00014999,2]
[392341280,1761366924319,-207.11810874,0.00014999,2]
[392341281,1761366927036,-160.77151376,0.00014999,2]
[392341282,1761366943919,-132.1103775,0.00014999,2]
[392341283,1761366943941,-88.68839968,0.00014999,2]
[392341284,1761366947941,-354.31554409,0.00014999,2]
[392341285,1761366951974,-56.99605623,0.00014999,2]
[392341286,1761366951998,-193.00394377,0.00014999,2]
[392341287,1761366956447,-306.99605623,0.00014999,2]
[392341288,1761366956470,-97.03175188,0.00014999,2]
[392341289,1761366958300,-284.56512091,0.00014999,2]
[392341290,1761366974495,-177.565662,0.00014999,2]
[392341291,1761367034411,-322.434338,0.00014999,2]
[392341292,1761367034433,-86.565662,0.00014999,2]
[392341293,1761367037311,-153.52,0.00014999,2]
[392341294,1761367039013,-185.75706546,0.00014999,2]
[392341295,1761367043749,-154.74435891,0.00014999,2]
[392341296,1761367046408,-58.95841032,0.00014999,2]
[392341297,1761367046433,-172.32103556,0.00015945,2]
[392341298,1761367048576,-77.67896444,0.00015945,2]
[392341299,1761367048600,-88.98103556,0.00016499,2]
[392341300,1761367093995,-161.01896444,0.00016499,2]
[392341301,1761367094017,-113.07274775,0.00016695,2]
[392341302,1761367123976,-228.6113622,0.00014999,2]
[392341303,1761367125669,-223.24300955,0.00014999,2]
[392341304,1761367127391,-59.77564591,0.00014999,2]
[392341305,1761367127416,-146.12348559,0.00015096,2]
[392341306,1761367129115,-447.01732048,0.00015096,2]
[392341307,1761367132205,-197.7438503,0.00015096,2]
[392341308,1761367134601,-209.39728647,0.00015096,2]
[392341309,1761367136234,-243.161913,0.00015096,2]
[392341310,1761367153984,-295.06994847,0.00015096,2]
[392341311,1761367156715,-369.33095453,0.00015096,2]
[392341312,1761367158595,-6.89694686,0.00015096,2]
[392341313,1761367158616,-381.40671221,0.00015103,2]
[392341314,1761367163680,-198.54323388,0.00015103,2]
[392341315,1761367165899,-262.8694312,0.00015103,2]
[392341316,1761367168228,-265.79000233,0.00015103,2]
[392341317,1761367184177,-85.94998418,0.00015103,2]
[392341318,1761367184198,-169.43872696,0.00016606,2]
[392341319,1761367187854,-80.56127304,0.00016606,2]
[392341320,1761367187878,-136.92725225,0.00016695,2]
[392341321,1761367187899,-99.71943335,0.00016873,2]
[392341322,1761367191777,-151.93086821,0.00016873,2]
[392341323,1761367194044,-153.21238773,0.00016873,2]
[392341324,1761367197312,-216.55287849,0.00016873,2]
[392341325,1761367214394,-159.78590693,0.00016873,2]
[392341326,1761367244026,-345.52848182,0.00015356,2]
[392341327,1761367246359,-245.70097785,0.00015356,2]
[392341328,1761367248627,-189.72,0.00015356,2]
[392341329,1761367252318,-173.59118698,0.00015356,2]
[392341330,1761367255717,-360.87351719,0.00015356,2]
[392341331,1761367261421,-272.5191036,0.00015355,2]
[392341332,1761367263103,-27.4808964,0.00015355,2]
[392341333,1761367263125,-139.86731115,0.00015356,2]
[392341334,1761367265314,-340.71947679,0.00015356,2]
[392341335,1761367270930,-378.94755823,0.00014999,2]
[392341336,1761367289571,-121.05244177,0.00014999,2]
[392341337,1761367289619,-108.29075352,0.00014999,2]
[392341338,1761367295017,-270.06024962,0.00014999,2]
[392341339,1761367297227,-121.64899686,0.00014999,2]
[392341340,1761367297250,-44.87619457,0.00014999,2]
[392341341,1761367299641,-357.09,0.00014999,2]
[392341342,1761367301926,-98.03380543,0.00014999,2]
[392341343,1761367301948,-148.8978456,0.00014999,2]
[392341344,1761367318974,-213.39879437,0.00014999,2]
[392341345,1761367320572,-137.70336003,0.00014999,2]
[392341346,1761367320594,-95.72968196,0.00014999,2]
[392341347,1761367323837,-300.0,0.00014998,2]
[392341348,1761367323858,-96.55695801,0.00014998,2]
[392341349,1761367326621,-203.44304199,0.00014998,2]
[392341350,1761367326641,-96.55695801,0.00014999,2]
[392341351,1761367328898,-183.0,0.00014999,2]
[392341352,1761367332529,-138.20026697,0.00014999,2]
[392341353,1761367332554,-34.20108857,0.00014999,2]
[392341354,1761367332917,300.0,0.00019356,7]
[392341355,1761367349448,-431.32617249,0.00014999,2]
[392341356,1761367352209,-34.47273894,0.00014999,2]
[392341357,1761367352231,-230.93552608,0.00014999,2]
[392341358,1761367354369,-254.95261105,0.00014999,2]
[392341359,1761367356502,-14.11186287,0.00014999,2]
[392341360,1761367356524,-172.23813729,0.00014999,2]
[392341361,1761367358125,-327.76186271,0.00014999,2]
[392341362,1761367358147,-41.43698892,0.00014999,2]
[392341363,1761367360458,-310.53559413,0.00014999,2]
[392341364,1761367366423,-157.98248551,0.00014999,2]
[392341365,1761367366444,-4.51523919,0.00015355,2]
[392341366,1761367368798,-203.03436496,0.00015355,2]
[392341367,1761367371748,-92.45039585,0.00015355,2]
[392341368,1761367371773,-84.72605396,0.00015355,2]
[392341369,1761367373972,-296.71355963,0.00015355,2]
[392341370,1761367377342,-179.50218907,0.00014999,2]
[392341371,1761367393936,-181.39636585,0.00014999,2]
[392341372,1761367397004,-155.47749682,0.00014999,2]
[392341373,1761367398991,-3.51024858,0.00014999,2]
[392341374,1761367399012,-163.1564181,0.00015354,2]
[392341375,1761367401737,-268.39718434,0.00014999,2]
[392341376,1761367404028,-234.48375742,0.00014999,2]
[392341377,1761367404050,-0.562529,0.00015354,2]
[392341378,1761367407507,-136.2810529,0.00015354,2]
[392341379,1761367407531,-96.01670495,0.00015355,2]
[392341380,1761367424091,-22.54368146,0.00015355,2]
[392341381,1761367424117,-178.84559996,0.00015355,2]
[392341382,1761367428134,-199.87542087,0.00015355,2]
[392341383,1761367429442,-121.27897917,0.00015355,2]
[392341384,1761367429467,-108.16834907,0.00015355,2]
[392341385,1761367431666,-261.07576494,0.00015355,2]
[392341386,1761367434018,-130.75588599,0.00015355,2]
[392341387,1761367434041,-144.91947533,0.00015355,2]
[392341388,1761367437642,-265.76,0.00015355,2]
[392341389,1761367453952,-172.0307543,0.0001511,2]
[392341390,1761367456122,-208.62598893,0.0001511,2]
[392341391,1761367460267,-211.95571822,0.0001511,2]
[392341392,1761367461901,-192.60682515,0.0001511,2]
[392341393,1761367461924,-103.1447541,0.00015178,2]
[392341394,1761367464632,-177.76250497,0.00015178,2]
[392341395,1761367467887,-186.07879755,0.00015178,2]
[392341396,1761367483956,-239.50299266,0.00015178,2]
[392341397,1761367486958,-96.02207672,0.00015178,2]
[392341398,1761367486986,-232.41708956,0.00015255,2]
[392341399,1761367488338,-154.25091183,0.00015255,2]
[392341400,1761367491338,-351.2296079,0.00015255,2]
[392341401,1761367494340,-301.22351527,0.00015255,2]
[392341402,1761367496039,-212.57910461,0.00015255,2]
[392341403,1761367515019,-287.42089539,0.00015255,2]
[392341404,1761367516720,-85.07421062,0.00015255,2]
[392341405,1761367516744,-95.67571658,0.00015255,2]
[392341406,1761367519457,-270.34297502,0.00015255,2]
[392341407,1761367519487,-245.63061914,0.00015354,2]
[392341408,1761367521697,-54.36938086,0.00015354,2]
[392341409,1761367521719,-348.32843007,0.00015354,2]
[392341410,1761367524681,-154.03,0.00015354,2]
[392341411,1761367526806,-258.17058828,0.00015354,2]
[392341412,1761367533397,-250.0022515,0.00015277,2]
[392341413,1761367534988,-376.9677485,0.00015277,2]
[392341414,1761367539871,-263.96721746,0.00015277,2]
[392341415,1761367543321,-166.66666668,0.00015254,2]
[392341416,1761367543353,-28.33333332,0.00015277,2]
[392341417,1761367545060,-261.99,0.00015277,2]
[392341418,1761367550760,-225.83644448,0.00015277,2]
[392341419,1761367552987,-322.5282868,0.00015277,2]
[392341420,1761367556052,-285.78371034,0.00015277,2]
[392341421,1761367558962,-228.4215338,0.00015277,2]
[392341422,1761367560647,-235.34959081,0.00015277,2]
[392341423,1761367562317,-161.99298482,0.00015277,2]
[392341424,1761367565076,-415.32,0.00015277,2]
[392341425,1761367567459,-177.74955,0.00015277,2]
[392341426,1761367569101,-288.74813817,0.00015277,2]
[392341427,1761367569125,-12.05298704,0.00015354,2]
[392341428,1761367571974,-371.75753306,0.00015354,2]
[392341429,1761367589022,-55.66046155,0.00015354,2]
[392341430,1761367589049,-257.80578949,0.00015354,2]
[392341431,1761367591594,-42.19421051,0.00015354,2]
[392341432,1761367591618,-137.23012581,0.00015354,2]
[392341433,1761367594222,-162.76987419,0.00015354,2]
[392341434,1761367594245,-36.37601949,0.00015354,2]
[392341435,1761367596696,-153.52,0.00015354,2]
[392341436,1761367599476,-110.10398051,0.00015354,2]
[392341437,1761367599498,-300.0,0.00015354,2]
[392341438,1761367599519,-86.45961515,0.00015354,2]
[392341439,1761367601820,-183.00646124,0.00015354,2]
[392341440,1761367619071,-30.53392361,0.00015354,2]
[392341441,1761367619097,-89.32052467,0.00015355,2]
[392341442,1761367619122,-133.25351049,0.00015355,2]
[392341443,1761367621473,-366.74648951,0.00015355,2]
[392341444,1761367621503,-43.77444775,0.00015355,2]
[392341445,1761367623655,-236.26594036,0.00015355,2]
[392341446,1761367625348,-219.95961189,0.00015355,2]
[392341447,1761367625373,-37.30038811,0.00015355,2]
[392341448,1761367628035,-335.71190526,0.00015355,2]
[392341449,1761367629775,-126.98770663,0.00015355,2]
[392341450,1761367629800,-101.18393372,0.00015355,2]
[392341451,1761367631375,-398.81606628,0.00015355,2]
[392341452,1761367631400,-64.7580378,0.00015355,2]
[392341453,1761367643685,-435.2419622,0.00015355,2]
[392341454,1761367643713,-500.0,0.00015355,2]
[392341455,1761367643738,-500.0,0.00015355,2]
[392341456,1761367643761,-500.0,0.00015355,2]
[392341457,1761367643785,-500.0,0.00015355,2]
[392341458,1761367643808,-500.0,0.00015355,2]
[392341459,1761367643832,-500.0,0.00015355,2]
[392341460,1761367643862,-500.0,0.00015355,2]
[392341461,1761367643886,-500.0,0.00015355,2]
[392341462,1761367643910,-500.0,0.00015355,2]
[392341463,1761367643934,-500.0,0.00015355,2]
[392341464,1761367643964,-500.0,0.00015355,2]
[392341465,1761367643988,-500.0,0.00015355,2]
[392341466,1761367644011,-500.0,0.00015355,2]
[392341467,1761367644036,-500.0,0.00015355,2]
[392341468,1761367644059,-500.0,0.00015355,2]
[392341469,1761367644083,-500.0,0.00015355,2]
[392341470,1761367644106,-500.0,0.00015355,2]
[392341471,1761367644130,-500.0,0.00015355,2]
[392341472,1761367644154,-500.0,0.00015355,2]
[392341473,1761367644178,-500.0,0.00015355,2]
[392341474,1761367644202,-500.0,0.00015355,2]
[392341475,1761367644226,-500.0,0.00015355,2]
[392341476,1761367644251,-500.0,0.00015355,2]
[392341477,1761367644275,-500.0,0.00015355,2]
[392341478,1761367644299,-500.0,0.00015355,2]
[392341479,1761367644322,-500.0,0.00015355,2]
[392341480,1761367644346,-500.0,0.00015355,2]
[392341481,1761367644369,-500.0,0.00015355,2]
[392341482,1761367644395,-500.0,0.00015355,2]
[392341483,1761367644421,-500.0,0.00015355,2]
[392341484,1761367644445,-500.0,0.00015355,2]
[392341485,1761367644469,-500.0,0.00015355,2]
[392341486,1761367644492,-500.0,0.00015355,2]
[392341487,1761367644516,-500.0,0.00015355,2]
[392341488,1761367644539,-500.0,0.00015355,2]
[392341489,1761367644562,-500.0,0.00015355,2]
[392341490,1761367644586,-500.0,0.00015355,2]
[392341491,1761367644609,-500.0,0.00015355,2]
[392341492,1761367644634,-224.35130803,0.00015355,2]
[392341493,1761367644661,-500.0,0.00015355,2]
[392341494,1761367644684,-500.0,0.00015355,2]
[392341495,1761367644708,-500.0,0.00015355,2]
[392341496,1761367644733,-500.0,0.00015355,2]
[392341497,1761367644756,-500.0,0.00015355,2]
[392341498,1761367644782,-500.0,0.00015355,2]
[392341499,1761367644808,-500.0,0.00015355,2]
[392341500,1761367644833,-500.0,0.00015355,2]
[392341501,1761367644861,-500.0,0.00015355,2]
[392341502,1761367644888,-649.99999999,0.00015355,2]
[392341503,1761367644912,-500.0,0.00015355,2]
[392341504,1761367644935,-500.0,0.00015355,2]
[392341505,1761367644959,-500.0,0.00015355,2]
[392341506,1761367645150,-500.0,0.00015355,2]
[392341507,1761367645191,-500.0,0.00015355,2]
[392341508,1761367645216,-500.0,0.00015355,2]
[392341509,1761367645241,-500.0,0.00015355,2]
[392341510,1761367645264,-500.0,0.00015355,2]
[392341511,1761367645289,-41212.92827832,0.00015356,2]
[392341512,1761367645310,-366.0186916,0.00015785,2]
[392341513,1761367645332,-366.0186916,0.00016315,2]
[392341514,1761367645354,-255.0,0.00016475,2]
[392341515,1761367645375,-250.0,0.00016781,2]
[392341516,1761367645397,-195.0,0.00016781,2]
[392341517,1761367645420,-342.0,0.00016798,2]
[392341518,1761367645443,-250.0,0.00016804,2]
[392341519,1761367645467,-514.66500036,0.00016873,2]
[392341520,1761367645488,-1680.0,0.00016883,2]
[392341521,1761367645510,-250.0,0.00016891,2]
[392341522,1761367645532,-1566.41,0.00016891,2]
[392341523,1761367645557,-250.0,0.00017,2]
[392341524,1761367645581,-1194.5593638,0.00017113,2]
[392341525,1761367645604,-1914.7417057,0.00017164,2]
[392341526,1761367645626,-151.0,0.00017381,2]
[392341527,1761367645649,-151.0,0.00017381,2]
[392341528,1761367645672,-151.0,0.00017381,2]
[392341529,1761367645696,-151.0,0.00017381,2]
[392341530,1761367645720,-151.0,0.00017381,2]
[392341531,1761367645742,-151.0,0.00017381,2]
[392341532,1761367645764,-309.35847701,0.00017381,2]
[392341533,1761367645786,-151.0,0.00017381,2]
[392341534,1761367645808,-151.0,0.00017381,2]
[392341535,1761367645833,-151.0,0.00017381,2]
[392341536,1761367645856,-151.0,0.00017381,2]
[392341537,1761367645879,-151.0,0.00017381,2]
[392341538,1761367645903,-151.0,0.00017381,2]
[392341539,1761367645925,-151.0,0.00017381,2]
[392341540,1761367645950,-291.79566579,0.00017381,2]
[392341541,1761367645972,-151.0,0.00017381,2]
[392341542,1761367645996,-151.0,0.00017381,2]
[392341543,1761367646018,-151.0,0.00017381,2]
[392341544,1761367646040,-151.0,0.00017381,2]
[392341545,1761367646064,-151.0,0.00017381,2]
[392341546,1761367646088,-151.0,0.00017381,2]
[392341547,1761367646110,-151.0,0.00017381,2]
[392341548,1761367646133,-151.0,0.00017381,2]
[392341549,1761367646156,-151.0,0.00017381,2]
[392341550,1761367646178,-151.0,0.00017381,2]
[392341551,1761367646201,-151.0,0.00017381,2]
[392341552,1761367646222,-151.0,0.00017381,2]
[392341553,1761367646243,-151.0,0.00017381,2]
[392341554,1761367646264,-151.0,0.00017381,2]
[392341555,1761367646285,-151.0,0.00017381,2]
[392341556,1761367646307,-151.0,0.00017381,2]
[392341557,1761367646330,-43008.9292301,0.00017392,2]
[392341558,1761367646352,-785.2192866,0.00017626,2]
[392341559,1761367646374,-1566.41,0.0001778,2]
[392341560,1761367646395,-182.09074188,0.00017962,2]
[392341561,1761367646415,-4799.20415143,0.00017973,2]
[392341562,1761367646436,-500.0,0.00017988,2]
[392341563,1761367646457,-500.0,0.00017988,2]
[392341564,1761367646478,-500.0,0.00017996,2]
[392341565,1761367646499,-166.15,0.00018152,2]
[392341566,1761367646520,-318.1922407,0.00018156,2]
[392341567,1761367646544,-502.33277462,0.00018357,2]
[392341568,1761367646568,-602.41010152,0.00018357,2]
[392341569,1761367646590,-508.04618754,0.00018357,2]
[392341570,1761367646613,-501.39516566,0.00018357,2]
[392341571,1761367646637,-500.0,0.00018357,2]
[392341572,1761367646663,-500.0,0.00018357,2]
[392341573,1761367646686,-501.61637599,0.00018357,2]
[392341574,1761367646709,-500.0,0.00018357,2]
[392341575,1761367646732,-500.0,0.00018357,2]
[392341576,1761367646752,-8660.91459956,0.00018431,2]
[392341577,1761367647424,-151.0,0.00017381,2]
[392341578,1761367647446,-151.0,0.00017381,2]
[392341579,1761367647468,-151.0,0.00017381,2]
[392341580,1761367647769,-151.0,0.00017381,2]
[392341581,1761367647813,-9010.59540044,0.00018431,2]
[392341582,1761367647835,-837.82055885,0.00018535,2]
[392341583,1761367647863,-1872.0,0.00018564,2]
[392341584,1761367647888,-1566.41,0.00018669,2]
[392341585,1761367647908,-5800.0,0.00018695,2]
[392341586,1761367647932,-1000.0,0.00018905,2]
[392341587,1761367647953,-1000.0,0.00018905,2]
[392341588,1761367647974,-505.79427132,0.00018905,2]
[392341589,1761367647994,-1000.0,0.00018905,2]
[392341590,1761367648016,-1194.5593638,0.00019124,2]
[392341591,1761367648038,-1914.7417057,0.00019232,2]
[392341592,1761367648059,-166.15,0.00019287,2]
[392341593,1761367648082,-43008.9292301,0.00019428,2]
[392341594,1761367648105,-1500.0,0.00019453,2]
[392341595,1761367648129,-1500.0,0.00019453,2]
[392341596,1761367648153,-1004.00575938,0.00019453,2]
[392341597,1761367648178,-9318.14915317,0.00019458,2]
[392341598,1761367648202,-1566.41,0.00019558,2]
[392341599,1761367653886,500.0,0.00018156,2]
[392341600,1761367653933,1000.0,0.00018704,2]
[392341601,1761367653993,500.0,0.00019251,2]
[392341602,1761367655814,500.0,0.00018156,2]
[392341603,1761367655877,707.51572907,0.00018704,2]
[392341604,1761367748479,11409.69,7.945e-05,2]
[392341605,1761367786589,1112.99,0.0001998,2]
[392341606,1761367819533,190.34,0.00016712,2]
[392341636,1761367832999,-272.84789021,0.00020001,2]
[392341637,1761367833011,-785.2192866,0.00020143,2]
[392341638,1761367833020,-166.15,0.00020421,2]
[392341639,1761367833030,-1566.41,0.00020447,2]
[392341640,1761367833039,-1200.0,0.00021133,2]
[392341641,1761367833052,-1194.5593638,0.00021134,2]
[392341642,1761367833061,-300.0,0.00021299,2]
[392341643,1761367833070,-1914.7417057,0.000213,2]
[392341644,1761367833079,-1566.41,0.00021336,2]
[392341645,1761367833088,-1004.55859029,0.00021462,2]
[392341646,1761367833097,-500.0,0.00021462,2]
[392341647,1761367833107,-500.0,0.00021462,2]
[392341648,1761367833117,-333.22954272,0.00021462,2]
[392341649,1761367833129,-166.77045728,0.00021462,2]
[392341650,1761367833138,-500.0,0.00021462,2]
[392341651,1761367833147,-464.65054873,0.00021462,2]
[392341652,1761367833173,-35.34945127,0.00021462,2]
[392341653,1761367833182,-637.43513081,0.00021462,2]
[392341654,1761367833191,-429.97544254,0.00021463,2]
[392341655,1761367833201,-500.0,0.00021463,2]
[392341656,1761367833210,-43008.9292301,0.00021463,2]
[392341657,1761367833219,-166.15,0.00021556,2]
[392341658,1761367833229,-1676.6680774,0.00021575,2]